bitfinex/quotes_ETHUSD_20251018
["timestamp","ask_amount","ask_price","bid_price","bid_amount"]
[1760757936905,2.603,3874.2,3874.1,3.37714467]
[1760757939111,2.603,3874.2,3874.1,0.1288]
[1760757945491,2.64798376,3874.2,3874.1,0.1288]
[1760757948222,2.64798376,3874.2,3874.1,2.71004467]
[1760757948422,2.64798376,3874.2,3874.1,3.15014467]
[1760757948924,2.603,3874.2,3874.1,3.15014467]
[1760757949718,2.603,3874.2,3874.1,3.37714467]
[1760757953712,2.64798257,3874.2,3874.1,3.37714467]
[1760757958024,0.002,3874.2,3874.1,3.99890866]
[1760757958329,0.002,3874.2,3874.1,4.74924968]
[1760757962611,0.002,3874.2,3874.1,4.77506212]
[1760757963209,0.002,3874.2,3874.1,4.74924968]
[1760757963805,0.002,3874.2,3874.1,4.77506212]
[1760757964009,0.002,3874.2,3874.1,9.10306212]
[1760757964218,0.002,3874.2,3874.1,9.07724968]
[1760757973241,1e-08,3874.6,3874.5,2.58097819]
[1760757973441,1e-08,3874.6,3874.5,3.09718239]
[1760757973615,1e-08,3874.6,3874.5,3.67308239]
[1760757973823,1e-08,3874.6,3874.5,6.40235199]
[1760757974130,1e-08,3874.6,3874.5,8.10454221]
[1760757982129,1e-08,3874.6,3874.5,5.05744221]
[1760757982363,1e-08,3874.6,3874.5,8.10354221]
[1760757993070,1e-08,3874.6,3874.5,8.10454221]
[1760757997476,1e-08,3874.6,3874.5,11.97454221]
[1760757998993,1e-08,3874.6,3874.5,11.52744221]
[1760758000367,1e-08,3874.6,3874.5,8.92844221]
[1760758000562,1e-08,3874.6,3874.5,11.52744221]
[1760758000767,0.163,3874.9,3874.7,2.58084496]
[1760758000981,0.163,3874.9,3874.8,8.30572708]
[1760758001172,0.163,3874.9,3874.8,8.43452708]
[1760758001688,0.163,3874.9,3874.8,8.59752708]
[1760758006894,0.163,3874.9,3874.8,4.60057836]
[1760758007062,0.163,3874.9,3874.8,2.87257836]
[1760758007791,0.002,3875.0,3874.9,2.58071176]
[1760758007954,0.002,3875.0,3874.9,4.30871176]
[1760758008161,0.002,3875.0,3874.9,6.90771176]
[1760758008361,0.002,3875.0,3874.9,8.33984077]
[1760758008556,0.002,3875.0,3874.9,7.97288828]
[1760758010663,0.002,3875.0,3874.9,5.37388828]
[1760758013175,0.002,3875.0,3874.9,5.97308828]
[1760758020089,0.002,3875.0,3874.9,5.50268828]
[1760758020615,0.002,3875.0,3874.9,5.93528828]
[1760758021812,1e-08,3875.4,3875.3,2.58044538]
[1760758022118,1e-08,3875.4,3875.3,5.02315419]
[1760758022409,1e-08,3875.4,3875.3,5.55919207]
[1760758022612,1e-08,3875.4,3875.3,5.53338762]
[1760758022782,1e-08,3876.0,3875.9,2.58004592]
[1760758022983,1e-08,3876.0,3875.9,3.12186418]
[1760758023414,1e-08,3876.0,3875.9,3.33426418]
[1760758023611,1e-08,3876.0,3875.9,3.30846373]
[1760758028221,1e-08,3876.0,3875.9,3.33426418]
[1760758028414,1e-08,3876.0,3875.9,3.76096373]
[1760758028616,1e-08,3876.0,3875.9,8.08696373]
[1760758031933,1e-08,3876.0,3875.9,8.21576373]
[1760758033132,1e-08,3876.0,3875.9,7.76326373]
[1760758033430,1e-08,3876.0,3875.9,5.16526373]
[1760758033606,1e-08,3876.0,3875.9,7.76326373]
[1760758036409,1e-08,3876.0,3875.9,8.21576373]
[1760758037331,1e-08,3876.0,3875.9,7.76326373]
[1760758037504,1e-08,3876.0,3875.9,8.21576373]
[1760758039630,1e-08,3876.0,3875.9,12.08576373]
[1760758040241,1e-08,3876.0,3875.9,14.80676373]
[1760758040405,1e-08,3876.0,3875.9,27.45526073]
[1760758040611,1e-08,3876.0,3875.9,26.51111173]
[1760758043310,1e-08,3876.0,3875.9,22.72243173]
[1760758045933,1e-08,3876.0,3875.9,22.72343173]
[1760758046312,0.00200001,3876.0,3875.9,14.80776373]
[1760758046515,0.00200001,3876.0,3875.9,17.70689549]
[1760758047037,1e-08,3876.4,3876.3,2.57977968]
[1760758047230,1e-08,3876.4,3876.3,5.17677968]
[1760758047550,1e-08,3876.4,3876.3,5.75807968]
[1760758047758,0.012,3877.3,3877.2,2.57918085]
[1760758047956,0.012,3877.3,3877.2,2.60497265]
[1760758048458,0.012,3877.3,3877.2,2.78588085]
[1760758048771,0.2067,3877.4,3877.3,2.57911433]
[1760758049163,0.2187,3877.4,3877.3,2.57911433]
[1760758049863,0.2067,3877.4,3877.3,5.12910499]
[1760758050264,0.2187,3877.4,3877.3,4.30711433]
[1760758053852,0.2187,3877.4,3877.3,4.52581433]
[1760758057682,0.2187,3877.4,3877.3,4.65461433]
[1760758058379,0.2067,3877.4,3877.3,4.65461433]
[1760758060368,0.11899676,3877.9,3877.8,2.57878178]
[1760758060776,0.11899676,3877.9,3877.8,2.70758178]
[1760758061572,0.11899676,3877.9,3877.8,2.82657854]
[1760758063479,0.11899676,3877.9,3877.8,4.55457854]
[1760758065058,0.00829676,3877.9,3877.8,4.55457854]
[1760758067964,0.11989676,3877.9,3877.8,4.55457854]
[1760758071613,0.00829676,3877.9,3877.8,2.82657854]
[1760758074635,0.00829676,3877.9,3877.8,0.24779676]
[1760758074940,0.11989676,3877.9,3877.8,2.70758178]
[1760758079749,0.00829676,3877.9,3877.8,0.1288]
[1760758079927,0.11989676,3877.9,3877.8,0.1288]
[1760758080328,0.11989676,3877.9,3877.8,2.70758178]
[1760758080526,0.11989676,3877.9,3877.8,0.1288]
[1760758080913,0.00829676,3877.9,3877.8,2.70758178]
[1760758081307,0.00829676,3877.9,3877.8,2.81097581]
[1760758081544,2.60529676,3877.9,3877.8,2.81097581]
[1760758081740,0.00829676,3877.9,3877.8,3.23977581]
[1760758081949,2.60529676,3877.9,3877.8,2.81097581]
[1760758083528,0.00829676,3877.9,3877.8,2.81097581]
[1760758083928,0.01029676,3877.9,3877.8,2.81097581]
[1760758084540,0.01029676,3877.9,3877.8,3.27917581]
[1760758086260,0.01029676,3877.9,3877.8,3.86498009]
[1760758088355,0.01029676,3877.9,3877.8,5.59298009]
[1760758092465,0.01029676,3877.9,3877.8,5.12478009]
[1760758092665,0.01029676,3877.9,3877.8,5.59298009]
[1760758100191,0.01029676,3877.9,3877.8,3.39678009]
[1760758110280,0.01029676,3877.9,3877.8,3.84968009]
[1760758111397,0.01029676,3877.9,3877.8,3.39678009]
[1760758114225,0.01029676,3877.9,3877.8,2.81097581]
[1760758114825,0.07499676,3877.9,3877.8,0.23219403]
[1760758115000,0.18569676,3877.9,3877.8,0.23219403]
[1760758115201,0.07499676,3877.9,3877.8,2.81097581]
[1760758115601,0.18569676,3877.9,3877.8,0.23219403]
[1760758115800,0.18569676,3877.9,3877.8,2.81097581]
[1760758120631,0.07499676,3877.9,3877.8,2.81097581]
[1760758127742,0.01029676,3877.9,3877.8,3.26387581]
[1760758128643,0.01029676,3877.9,3877.8,2.81097581]
[1760758128821,0.01029676,3877.9,3877.8,3.26387581]
[1760758130925,0.01029676,3877.9,3877.8,2.81097581]
[1760758132516,0.01029676,3877.9,3877.8,3.26387581]
[1760758134464,0.01029676,3877.9,3877.8,2.81097581]
[1760758138035,2.60629676,3877.9,3877.8,3.26387581]
[1760758138236,2.60629676,3877.9,3877.8,2.81097581]
[1760758139050,2.60629676,3877.9,3877.8,0.23219403]
[1760758139366,2.94342644,3877.9,3877.8,2.81097581]
[1760758139536,2.68279676,3877.9,3877.8,2.81097581]
[1760758140252,2.60629676,3877.9,3877.8,2.81097581]
[1760758140429,2.68279676,3877.9,3877.8,0.23219403]
[1760758140630,2.68279676,3877.9,3877.8,2.81097581]
[1760758140828,2.68279676,3877.9,3877.8,0.23219403]
[1760758141034,3.21183402,3877.9,3877.8,0.23219403]
[1760758141237,2.60529676,3877.9,3877.8,0.23219403]
[1760758141662,2.68179676,3877.9,3877.8,0.23219403]
[1760758142941,2.80660136,3877.9,3877.8,0.23219403]
[1760758145880,2.70760136,3877.9,3877.8,0.23219403]
[1760758146668,2.80660136,3877.9,3877.8,0.23219403]
[1760758146869,3.42743348,3877.9,3877.8,0.23219403]
[1760758147672,3.32843348,3877.9,3877.8,0.23219403]
[1760758149351,3.25193348,3877.9,3877.8,0.23219403]
[1760758150465,3.42663348,3877.9,3877.8,0.23219403]
[1760758150637,3.25193348,3877.9,3877.8,0.23219403]
[1760758151777,5.15543348,3877.9,3877.8,0.23219403]
[1760758151981,5.12962888,3877.9,3877.8,0.23219403]
[1760758152151,5.12962888,3877.9,3877.8,0.1288]
[1760758153679,5.03062888,3877.9,3877.8,0.1288]
[1760758153980,2.46143348,3877.9,3877.8,0.1288]
[1760758154183,5.05743348,3877.9,3877.8,0.1288]
[1760758160154,5.15643348,3877.9,3877.8,0.1288]
[1760758160355,5.13062888,3877.9,3877.8,0.1288]
[1760758162401,5.03162888,3877.9,3877.8,0.1288]
[1760758162617,5.05743348,3877.9,3877.8,0.1288]
[1760758163825,5.03162888,3877.9,3877.8,0.1288]
[1760758164688,4.95512888,3877.9,3877.8,0.1288]
[1760758168210,0.01029676,3877.9,3877.8,3.17878178]
[1760758168377,2.60629676,3877.9,3877.8,3.17878178]
[1760758168992,2.60629676,3877.9,3877.8,3.95426513]
[1760758170013,0.01029676,3877.9,3877.8,3.95426513]
[1760758170228,2.60529676,3877.9,3877.8,3.95426513]
[1760758177838,0.01029676,3877.9,3877.8,3.95426513]
[1760758178245,2.60529676,3877.9,3877.8,3.95426513]
[1760758178606,0.01029676,3877.9,3877.8,3.95426513]
[1760758178811,2.60529676,3877.9,3877.8,4.60758184]
[1760758184649,2.60529676,3877.9,3877.8,3.95426513]
[1760758190930,0.01029676,3877.9,3877.8,3.95426513]
[1760758197477,0.002,3878.3,3878.2,2.5785158]
[1760758197636,0.002,3878.3,3878.2,2.60430095]
[1760758197835,0.002,3878.3,3878.2,3.19960095]
[1760758198063,0.002,3878.3,3878.2,3.80082117]
[1760758198565,0.002,3878.3,3878.2,3.77503602]
[1760758198768,0.002,3878.3,3878.2,3.87840307]
[1760758200367,0.002,3878.3,3878.2,8.22618822]
[1760758200699,0.002,3878.3,3878.2,8.20040307]
[1760758201281,1.79,3880.0,3879.0,2.57797233]
[1760758201482,0.099,3879.5,3878.9,2.57801114]
[1760758201681,0.099,3879.4,3878.2,0.12988032]
[1760758201881,4.1034713,3879.3,3877.6,0.4427]
[1760758202081,4.0044713,3879.3,3879.1,0.1288]
[1760758202281,0.49944713,3879.2,3879.1,0.1288]
[1760758202864,3.09344713,3879.2,3879.1,0.1288]
[1760758203285,1.728,3879.6,3879.1,0.1288]
[1760758203286,0.099,3879.7,3879.3,2.57777254]
[1760758203481,4.0286667,3880.1,3879.1,0.1288]
[1760758203482,0.099,3879.6,3879.1,0.1288]
[1760758203696,0.099,3879.6,3879.5,2.57765175]
[1760758203906,2.693,3879.6,3879.5,2.70645175]
[1760758204074,0.099,3879.6,3879.5,2.70645175]
[1760758204266,2.63892469,3879.6,3879.5,2.70645175]
[1760758205966,2.64092469,3879.6,3879.5,2.70645175]
[1760758207729,0.04692469,3879.6,3879.5,2.70645175]
[1760758208036,0.002,3879.6,3879.5,3.4815464]
[1760758208201,2.596,3879.6,3879.5,3.9473464]
[1760758208821,2.596,3879.6,3879.5,3.4815464]
[1760758211029,0.002,3879.6,3879.5,3.4815464]
[1760758211220,2.596,3879.6,3879.5,3.4815464]
[1760758213506,2.596,3879.6,3879.5,3.9473464]
[1760758213902,0.002,3879.6,3879.5,4.59985919]
[1760758214620,0.002,3879.6,3879.5,6.19905919]
[1760758216234,1e-08,3880.0,3879.9,2.57738601]
[1760758216435,1e-08,3880.0,3879.9,6.89838601]
[1760758216635,1e-08,3880.0,3879.9,8.3583565]
[1760758217626,1e-08,3880.0,3879.9,21.3580845]
[1760758217816,1e-08,3880.0,3879.9,14.9255665]
[1760758218145,1e-08,3880.0,3879.9,12.4615385]
[1760758219642,1e-08,3880.0,3879.9,12.56482307]
[1760758222326,0.099,3882.0,3881.9,2.57605811]
[1760758222929,0.099,3882.0,3881.9,3.35065444]
[1760758223352,0.099,3882.0,3881.6,2.57620538]
[1760758223521,2.598,3882.3,3881.4,2.5763783]
[1760758223522,0.099,3881.9,3881.4,2.5763783]
[1760758223953,0.0448951,3882.2,3881.7,2.57618869]
[1760758224116,0.26428951,3882.1,3881.8,0.77469034]
[1760758224314,0.26428951,3882.1,3881.7,2.57618869]
[1760758224527,0.099,3882.0,3881.8,2.57611197]
[1760758224728,0.099,3881.9,3881.7,2.57618655]
[1760758225022,0.099,3881.8,3881.6,2.57624984]
[1760758225228,0.099,3881.7,3881.6,2.57624984]
[1760758225653,0.099,3881.7,3881.6,2.70504984]
[1760758227447,0.099,3881.9,3881.8,2.57606101]
[1760758227656,0.099,3881.9,3881.7,2.57618278]
[1760758227954,0.26428951,3882.1,3881.8,0.1288]
[1760758228248,0.29071846,3882.0,3881.8,2.70490186]
[1760758228449,0.29071846,3882.0,3881.9,2.57605811]
[1760758228627,0.38971846,3882.0,3881.9,2.70405811]
[1760758228946,2.88771846,3882.0,3881.9,2.70405811]
[1760758229352,2.98671846,3882.0,3881.9,2.70405811]
[1760758229721,2.98771846,3882.0,3881.9,2.70405811]
[1760758230846,0.29071846,3882.0,3881.9,2.70405811]
[1760758231062,0.0448951,3882.2,3882.1,2.5759254]
[1760758231255,2.7408951,3882.2,3882.1,2.5759254]
[1760758231430,2.7408951,3882.2,3882.1,2.7039254]
[1760758233534,2.7408951,3882.2,3882.1,0.128]
[1760758235155,0.1438951,3882.2,3882.1,0.128]
[1760758235355,2.7408951,3882.2,3882.1,0.128]
[1760758235553,0.42339461,3882.2,3882.1,0.128]
[1760758235726,2.6418951,3882.2,3882.1,0.128]
[1760758236669,2.6418951,3882.2,3882.1,2.7039254]
[1760758238275,2.6418951,3882.2,3882.1,0.128]
[1760758238969,0.0448951,3882.2,3882.1,2.7039254]
[1760758239170,2.6408951,3882.2,3882.1,2.7039254]
[1760758241763,2.6428951,3882.2,3882.1,2.7039254]
[1760758242577,2.6428951,3882.2,3882.1,3.1344254]
[1760758243078,2.6428951,3882.2,3882.1,2.7039254]
[1760758244151,0.0468951,3882.2,3882.1,2.7039254]
[1760758244359,2.6428951,3882.2,3882.1,2.7039254]
[1760758245245,0.002,3882.2,3882.1,3.2317254]
[1760758251288,0.002,3882.2,3882.1,5.58693041]
[1760758251586,0.002,3882.2,3882.1,5.56117116]
[1760758251787,0.002,3882.2,3882.1,6.33559953]
[1760758253074,0.002,3882.2,3882.1,5.67979953]
[1760758253387,0.002,3882.2,3882.1,4.90537116]
[1760758253577,0.002,3882.2,3882.1,5.33587116]
[1760758253774,0.002,3882.2,3882.1,5.84487116]
[1760758255292,0.002,3882.2,3882.1,5.97287116]
[1760758261978,0.002,3882.2,3882.1,5.54237116]
[1760758264012,0.002,3882.2,3882.1,4.9409254]
[1760758264179,0.002,3882.2,3882.1,3.2129254]
[1760758264583,0.002,3882.2,3882.1,2.7039254]
[1760758266598,0.002,3882.2,3882.1,0.128]
[1760758266799,0.101,3882.2,3881.9,0.001]
[1760758267103,2.93808796,3882.1,3881.9,0.001]
[1760758267490,0.099,3882.0,3881.9,0.001]
[1760758268803,5.1768796,3882.0,3881.9,0.001]
[1760758269902,5.22177847,3882.0,3881.9,0.001]
[1760758283099,7.81577847,3882.0,3881.9,0.001]
[1760758283300,8.63206511,3882.0,3881.9,0.001]
[1760758284201,8.53306511,3882.0,3881.9,0.001]
[1760758284498,8.63206511,3882.0,3881.9,0.001]
[1760758286303,8.53306511,3882.0,3881.9,0.001]
[1760758287746,8.63206511,3882.0,3881.9,0.001]
[1760758290148,8.53306511,3882.0,3881.9,0.001]
[1760758294248,2.58918551,3882.0,3881.9,0.001]
[1760758294546,7.71577847,3882.0,3881.9,0.001]
[1760758297372,4.36789887,3882.0,3881.9,0.001]
[1760758304693,4.46689887,3882.0,3881.9,0.001]
[1760758304876,4.36789887,3882.0,3881.9,0.001]
[1760758306686,2.63989887,3882.0,3881.9,0.001]
[1760758306888,3.39090572,3882.0,3881.9,0.001]
[1760758311655,5.11890572,3882.0,3881.9,0.001]
[1760758317029,1.728,3881.9,3881.5,0.001]
[1760758317227,0.0541,3881.6,3881.5,0.001]
[1760758317520,4.724201,3881.6,3881.5,0.001]
[1760758317697,4.823201,3881.6,3881.5,0.001]
[1760758320593,4.724201,3881.6,3881.5,0.001]
[1760758321404,4.76911055,3881.6,3881.5,0.001]
[1760758322302,4.724201,3881.6,3881.5,0.001]
[1760758322709,4.670101,3881.6,3881.5,0.001]
[1760758323053,2.077101,3881.6,3881.5,0.001]
[1760758323230,4.321,3881.6,3881.5,0.4303]
[1760758324927,1.728,3881.6,3881.5,0.4303]
[1760758325132,4.321,3881.6,3881.5,0.4303]
[1760758326508,4.36590413,3881.6,3881.5,0.4303]
[1760758326851,1.77290413,3881.6,3881.5,0.4303]
[1760758327018,4.36590413,3881.6,3881.5,0.5591]
[1760758329948,4.36590332,3881.6,3881.5,0.5591]
[1760758330244,4.321,3881.6,3881.5,0.5591]
[1760758333241,4.36590318,3881.6,3881.5,0.5591]
[1760758335052,2.63790318,3881.6,3881.5,0.5591]
[1760758335939,0.04490318,3881.6,3881.5,3.13542358]
[1760758336236,0.002,3881.9,3881.8,2.57612447]
[1760758336638,0.002,3881.9,3881.8,3.15662447]
[1760758336847,4.02199693,3883.8,3882.8,2.57543655]
[1760758337054,4.14999693,3883.8,3883.1,0.128]
[1760758337250,2.593,3883.7,3883.1,0.128]
[1760758337574,0.68918969,3883.6,3883.1,0.5797]
[1760758338124,2.593,3883.5,3883.2,0.4517]
[1760758339058,0.68918969,3883.6,3883.2,0.4517]
[1760758339553,2.593,3883.5,3883.2,0.4517]
[1760758340539,0.68918969,3883.6,3883.2,0.4517]
[1760758340737,2.593,3883.5,3883.1,0.128]
[1760758340949,2.593,3883.5,3883.1,0.5797]
[1760758341462,2.592,3883.4,3883.1,0.5797]
[1760758341768,0.68918969,3883.6,3883.1,0.5797]
[1760758342004,2.592,3883.5,3883.1,0.5797]
[1760758342478,2.592,3883.4,3883.1,0.5797]
[1760758343769,0.68918969,3883.6,3883.1,0.128]
[1760758343964,1.728,3883.4,3883.3,0.128]
[1760758345067,1.77288485,3883.4,3883.3,0.128]
[1760758345271,0.40392604,3884.0,3883.5,2.57497285]
[1760758345465,2.592,3883.9,3883.6,1.01445535]
[1760758345795,2.592,3883.8,3883.7,3.02656417]
[1760758346305,4.09849693,3884.6,3883.8,2.57478522]
[1760758346471,2.592,3884.5,3883.8,2.57478522]
[1760758346805,2.592,3884.5,3883.9,0.4517]
[1760758346979,3.27095969,3884.5,3883.9,0.4517]
[1760758347183,2.592,3884.4,3883.9,0.4517]
[1760758347600,2.592,3884.4,3884.0,0.4517]
[1760758348603,6.61399693,3884.3,3883.7,0.2285]
[1760758348899,3.25339969,3884.2,3883.4,0.77430844]
[1760758349099,0.099,3884.1,3883.2,0.2285]
[1760758349506,4.02199693,3883.9,3883.0,0.77439239]
[1760758349705,2.6419,3883.8,3883.0,0.77439239]
[1760758349875,2.7409,3883.8,3883.0,0.77439239]
[1760758350198,0.77528969,3883.7,3882.8,0.4332]
[1760758350398,0.099,3883.6,3882.8,0.4332]
[1760758350570,0.2036,3882.9,3881.7,0.4332]
[1760758350770,2.692,3882.8,3881.7,3.00938703]
[1760758350967,2.692,3882.8,3881.7,3.78400935]
[1760758351199,2.692,3882.8,3881.9,0.4332]
[1760758351404,2.592,3882.8,3882.0,0.62975094]
[1760758351710,2.592,3882.8,3882.1,3.0091116]
[1760758351867,4.12309693,3883.5,3882.2,0.4332]
[1760758352073,1.728,3883.4,3882.2,0.4332]
[1760758352296,2.593,3883.3,3882.2,0.4332]
[1760758352498,2.593,3883.3,3882.6,2.5755335]
[1760758352680,2.594,3883.2,3882.7,0.69075335]
[1760758352882,2.594,3883.1,3882.1,2.57587005]
[1760758353174,2.594,3883.0,3882.2,2.57583335]
[1760758353494,2.594,3883.0,3882.3,0.4332]
[1760758354672,2.594,3883.0,3882.1,0.4342]
[1760758354872,1.728,3882.9,3882.1,0.4342]
[1760758355326,0.3036,3882.8,3882.6,0.128]
[1760758355805,0.099,3882.7,3882.4,0.128]
[1760758355975,2.594,3882.6,3882.4,0.128]
[1760758356993,0.2046,3882.8,3882.4,0.128]
[1760758357192,2.594,3882.5,3882.4,0.128]
[1760758357908,1.728,3882.4,3882.1,0.001]
[1760758358110,2.88376,3882.5,3882.1,0.001]
[1760758358410,0.099,3882.4,3882.1,0.001]
[1760758359113,0.099,3882.3,3882.1,0.001]
[1760758359480,1.728,3882.4,3882.1,0.001]
[1760758359679,0.46566555,3882.4,3882.1,0.001]
[1760758359875,2.594,3882.3,3882.2,0.4332]
[1760758360080,1.728,3882.5,3882.2,0.4332]
[1760758360393,0.2046,3882.8,3882.1,0.2162]
[1760758360598,2.594,3882.7,3882.1,0.2162]
[1760758361008,2.594,3882.7,3882.1,0.6494]
[1760758361207,1.728,3882.5,3882.1,0.6494]
[1760758361411,1.728,3882.5,3882.2,0.4332]
[1760758361716,1.728,3882.3,3882.2,0.4332]
[1760758362420,0.04489334,3882.3,3882.2,0.4332]
[1760758363418,2.63889334,3882.3,3882.2,0.4332]
[1760758363724,2.594,3882.3,3882.2,0.4332]
[1760758364091,2.594,3882.3,3882.2,0.75573083]
[1760758364286,2.594,3882.3,3882.2,3.78358538]
[1760758364497,2.594,3882.3,3882.2,1.20772634]
[1760758364725,2.594,3882.3,3882.2,0.4332]
[1760758365225,2.594,3882.3,3882.2,3.00905904]
[1760758366227,2.594,3882.3,3882.1,0.001]
[1760758366807,2.594,3882.3,3882.1,0.4342]
[1760758367424,2.594,3882.3,3882.1,0.001]
[1760758367924,2.594,3882.3,3882.2,0.128]
[1760758372345,2.593,3882.3,3882.2,3.00899506]
[1760758372645,2.593,3882.3,3882.2,1.01331642]
[1760758372850,2.593,3882.3,3882.1,0.2162]
[1760758373058,2.593,3882.3,3882.1,0.6494]
[1760758373346,0.04489042,3882.8,3882.1,0.6494]
[1760758373549,1.73,3882.6,3882.1,0.6494]
[1760758374050,1.73,3882.6,3882.1,3.22530168]
[1760758374644,1.73,3882.6,3882.1,0.6494]
[1760758374829,1.73,3882.6,3882.1,0.2162]
[1760758375127,1.73,3882.6,3882.1,0.001]
[1760758375328,1.73,3882.6,3882.1,2.57691513]
[1760758375516,1.73,3882.6,3882.2,2.5758573]
[1760758375716,1.73,3882.6,3882.2,0.4332]
[1760758377157,1.73,3882.6,3882.2,3.00904477]
[1760758377339,1.73,3882.6,3882.3,0.4332]
[1760758377340,0.002,3882.6,3882.3,0.4332]
[1760758378747,2.593,3882.5,3882.3,0.4332]
[1760758379358,2.593,3882.5,3882.4,0.4409]
[1760758380656,0.002,3882.6,3882.4,0.4409]
[1760758380952,2.593,3882.5,3882.3,2.57577219]
[1760758381158,2.593,3882.5,3882.2,2.57584692]
[1760758381562,2.593,3882.5,3882.3,0.4409]
[1760758381758,0.002,3882.6,3882.3,0.4409]
[1760758382070,2.593,3882.4,3882.1,0.2162]
[1760758382361,2.593,3882.4,3882.1,0.4419]
[1760758382549,2.593,3882.4,3882.3,0.128]
[1760758383561,2.593,3882.4,3882.3,0.5689]
[1760758384848,2.593,3882.4,3882.3,0.128]
[1760758386995,4.69699,3882.4,3882.3,0.128]
[1760758387161,3.09699,3882.4,3882.1,0.001]
[1760758387366,5.07811466,3882.2,3882.1,0.001]
[1760758387831,5.18401466,3882.2,3882.1,0.001]
[1760758388728,5.07811466,3882.2,3882.1,0.001]
[1760758388959,2.53492047,3882.2,3882.1,0.001]
[1760758390563,2.57982094,3882.2,3882.1,0.001]
[1760758393250,5.9299356,3882.2,3882.1,0.001]
[1760758393590,12.32098788,3882.2,3882.1,0.001]
[1760758393769,5.99093513,3882.2,3882.1,0.001]
[1760758394284,8.56679417,3882.2,3882.1,0.001]
[1760758394583,5.99093513,3882.2,3882.1,0.001]
[1760758394787,9.34104979,3882.2,3882.1,0.001]
[1760758395187,5.99093513,3882.2,3882.1,0.001]
[1760758395482,9.34104979,3882.2,3882.1,0.001]
[1760758396681,12.32101183,3882.2,3882.1,0.001]
[1760758397386,12.91377358,3882.2,3882.1,0.001]
[1760758397700,2.5760786,3881.9,3881.7,0.001]
[1760758397868,8.36599,3881.8,3881.7,0.001]
[1760758398069,8.47139,3881.8,3881.7,0.001]
[1760758398274,11.09242845,3881.8,3881.7,0.001]
[1760758398475,11.49659559,3881.8,3881.7,0.001]
[1760758399272,4.30425721,3881.6,3881.5,0.001]
[1760758399537,5.11117768,3881.6,3881.5,0.001]
[1760758399710,5.21657768,3881.6,3881.5,0.001]
[1760758400011,5.31992683,3881.6,3881.5,0.001]
[1760758401782,2.74366962,3881.6,3881.5,0.001]
[1760758401982,5.31992683,3881.6,3881.5,0.001]
[1760758402922,5.21452683,3881.6,3881.5,0.001]
[1760758403222,5.31992683,3881.6,3881.5,0.001]
[1760758404720,5.21657768,3881.6,3881.5,0.001]
[1760758407725,5.88503513,3881.6,3881.5,0.001]
[1760758407917,8.48103513,3881.6,3881.5,0.001]
[1760758408597,11.16219234,3881.6,3881.5,0.001]
[1760758409702,11.49109065,3881.6,3881.5,0.001]
[1760758410323,6.75303513,3881.6,3881.5,0.001]
[1760758410923,8.58593513,3881.6,3881.5,0.001]
[1760758411123,8.48103513,3881.6,3881.5,0.001]
[1760758411829,8.88519143,3881.6,3881.5,0.001]
[1760758412233,6.28919143,3881.6,3881.5,0.001]
[1760758412734,11.46444864,3881.6,3881.5,0.001]
[1760758414206,11.06029234,3881.6,3881.5,0.001]
[1760758414431,11.16519234,3881.6,3881.5,0.001]
[1760758416934,11.06029234,3881.6,3881.5,0.001]
[1760758417103,4.30438996,3881.4,3881.3,0.001]
[1760758417303,11.3326653,3881.4,3881.3,0.001]
[1760758417516,11.4375653,3881.4,3881.3,0.001]
[1760758417807,11.48248392,3881.4,3881.3,0.001]
[1760758418432,15.16149689,3881.4,3881.3,0.001]
[1760758418635,2.57677441,3880.9,3880.3,0.2189]
[1760758418803,11.02722932,3880.8,3880.3,0.2189]
[1760758419009,11.02822932,3880.8,3880.3,0.2189]
[1760758419324,7.30902297,3880.8,3880.1,0.6575]
[1760758419525,11.33538559,3880.8,3880.1,0.6575]
[1760758419724,11.97366093,3880.8,3880.1,0.6575]
[1760758421240,12.07266093,3880.8,3880.1,0.6575]
[1760758421410,9.39687264,3880.8,3880.1,0.6575]
[1760758421610,11.97366093,3880.8,3880.1,0.6575]
[1760758421941,12.0185869,3880.8,3880.1,0.6575]
[1760758423042,12.44648521,3880.8,3880.1,0.6575]
[1760758423243,2.57713781,3880.3,3879.8,0.2189]
[1760758423410,1.728,3880.7,3879.8,0.2189]
[1760758423411,1.728,3880.1,3879.8,0.2189]
[1760758423739,1.728,3880.1,3879.9,0.4386]
[1760758424313,1.728,3880.1,3880.0,0.4386]
[1760758425741,6.62536262,3880.1,3880.0,0.4386]
[1760758426045,5.75436262,3880.1,3880.0,0.4386]
[1760758426246,8.35336262,3880.1,3880.0,0.4386]
[1760758426538,4.327,3880.1,3880.0,0.4386]
[1760758426737,1.728,3880.1,3880.0,0.4386]
[1760758426920,4.328,3880.1,3880.0,0.4386]
[1760758428037,4.327,3880.1,3880.0,0.4386]
[1760758429112,4.804621,3880.1,3880.0,0.4386]
[1760758429339,0.44921004,3880.3,3880.0,0.4386]
[1760758429541,0.44921004,3880.3,3880.2,2.79608674]
[1760758429866,4.02636262,3881.4,3880.2,3.23468674]
[1760758430041,1.728,3881.3,3880.4,2.57704251]
[1760758430356,1.728,3881.3,3880.5,0.4386]
[1760758433151,0.04491313,3881.2,3880.5,0.4386]
[1760758433352,0.04491313,3881.2,3880.9,0.1288]
[1760758433967,0.04491313,3881.2,3881.0,0.4386]
[1760758434143,0.04491313,3881.2,3881.1,0.4386]
[1760758435789,0.04491313,3881.2,3880.9,0.1288]
[1760758436073,0.04491313,3881.2,3880.9,0.5674]
[1760758436665,0.04491313,3881.2,3880.9,0.1288]
[1760758436851,0.04491313,3881.2,3880.5,0.4386]
[1760758437169,0.04491313,3881.2,3880.7,0.1288]
[1760758437680,0.04491313,3881.2,3880.7,0.5674]
[1760758438062,0.04491313,3881.2,3880.2,0.2189]
[1760758438063,1.728,3880.9,3880.2,0.2189]